[Event "Gibraltar Amateurs B 2019"]
[Site "Caleta"]
[Date "2019.01.28"]
[Round "3"]
[White "Bosschem, Eddy"]
[Black "Greco, Joseph"]
[Result "1-0"]
[ECO "D10"]
[WhiteElo "1847"]
[BlackElo "1574"]
[Annotator "NA"]
[PlyCount "85"]
[EventDate "2019.01.18"]
[EventType "swiss"]
[EventCountry "GGB"]
[SourceTitle "playchess.com"]
[Source "ChessBase"]
[SourceQuality "1"]
[TimeControl "6600+10"]

1. d4 {[%emt 0:00:00]} c5 {[%emt 0:00:00]} 2. c3 {[%emt 0:00:20]} cxd4 {[%emt 0:01:07]} 3. cxd4 {[%emt 0:00:06]} d5 {[%emt 0:01:41]} 4. Nc3 {[%emt 0:01:25]} g6 {[%emt 0:04:24]} 5. Nf3 {[%emt 0:05:00]} Nc6 {[%emt 0:01:17]} 6. Bf4 {[%emt 0:04:33]} Bg7 {[%emt 0:02:50]} 7. e3 {[%emt 0:00:13]} a6 {[%emt 0:05:13]} 8. Qb3 {[%emt 0:12:48] D10: Slav Defence: 3 cxd5 (without early Nf3) and 3 Nc3} (8. h3 Nf6 9. Bd3 O-O 10. O-O b5 11. a4 b4 12. Na2 a5 13. Nc1 Bd7 14. Nb3 Ne4 15. Qe2 Qe8 16. Bb5 f6 17. Rfc1 e5 18. Bh2 {1-0 (40) Mkrtchian,L (2450)-Matnadze,A (2411) Wroclaw 2014}) 8... e6 {[%emt 0:08:40]} 9. Rc1 {[%emt 0:11:35]} f6 $146 {[%emt 0:08:37]} ({Predecessor:} 9... Nge7 10. Bd3 O-O 11. O-O f6 {½-½ (44) Ulrichsen,J-Wibe,T Norway 1975}) 10. Be2 {[%emt 0:07:15]} Nge7 {[%emt 0:08:37]} 11. O-O {[%emt 0:03:13]} g5 {[%emt 0:05:49]} 12. Bg3 {[%emt 0:13:04]} h5 {[%emt 0:14:32]} 13. h4 {[%emt 0:11:24]} g4 {[%emt 0:08:46]} 14. Ne1 {[%emt 0:09:17]} Nf5 {[%emt 0:05:58]} 15. Nd3 {[%emt 0:06:00]} Nxg3 {[%emt 0:05:21]} 16. fxg3 {[%emt 0:00:19]} f5 {[%emt 0:03:28]} (16... Na5 $11 17. Qc2 Nc4) 17. Nf4 {[%emt 0:01:00]} Rb8 {[%emt 0:05:12] [#]} 18. Na4 {[%emt 0:05:46]} (18. Ncxd5 $1 $18 {[%mdl 512]} exd5 {[#]} 19. Rxc6 $1 {[%mdl 576] Remove Defender} bxc6 20. Qxb8) 18... Qd6 {[%emt 0:03:02]} 19. Nb6 {[%emt 0:07:25]} (19. Qb6 $16) 19... Bd7 {[%emt 0:01:10]} 20. Nxd7 {[%emt 0:00:55]} Kxd7 {[%emt 0:00:46]} 21. Qb6 {[%emt 0:06:18]} Bf6 {[%emt 0:01:33]} 22. Rc3 $2 {[%emt 0:01:14]} (22. a3 $11 {and White is okay.}) 22... Bd8 $2 {[%emt 0:00:39]} ({Better is} 22... Nxd4 $1 $19 23. Qxd6+ Kxd6 24. exd4 Bxd4+ {[%mdl 64] Double Attack} 25. Kh2 Bxc3 26. bxc3 e5) 23. Qb3 $1 {[%emt 0:00:50]} Bf6 {[%emt 0:03:17]} ({Better is} 23... Rh6 $14) 24. Rfc1 {[%emt 0:00:25]} Bd8 {[%emt 0:05:10]} (24... Bg7 $16) 25. Qa4 {[%emt 0:01:27]} Rc8 $2 {[%emt 0:01:17]} (25... Bc7 26. Bd3 Rh6) 26. Kh2 {[%emt 0:00:52]} Bf6 $11 {[%emt 0:00:33]} (26... Bc7 $16 27. Bd3 (27. Bxa6 Ra8 $16 {[%mdl 64] Pin}) 27... Rh6) 27. Nd3 $2 {[%emt 0:00:26]} (27. Rc5 $18) 27... Ke7 {[%emt 0:01:12]} 28. Nf4 {[%emt 0:00:22]} Rhg8 $18 {[%emt 0:00:33]} 29. Bxa6 {[%emt 0:00:20]} Ra8 {[%emt 0:00:23]} 30. Rxc6 {[%emt 0:00:01]} bxc6 {[%emt 0:00:31]} 31. Rxc6 {[%emt 0:00:02]} Qb8 {[%emt 0:01:15]} 32. Rxe6+ {[%emt 0:00:18]} Kd8 {[%emt 0:01:01]} 33. Rxf6 {[%emt 0:00:31]} Qa7 {[%emt 0:00:01]} 34. Qc6 {[%emt 0:00:03]} Rb8 {[%emt 0:00:39]} 35. Bb5 {[%emt 0:00:06]} Qb7 {[%emt 0:00:36]} 36. Rd6+ {[%emt 0:00:08]} Ke7 {[%emt 0:00:05]} 37. Rd7+ {[%emt 0:00:00]} Qxd7 {[%emt 0:00:37]} 38. Qxd7+ {[%emt 0:00:02]} Kf6 {[%emt 0:00:02]} 39. Nxh5+ {[%emt 0:00:13]} Kg6 {[%emt 0:00:00]} 40. Nf4+ {[%emt 0:00:02]} Kf6 {[%emt 0:00:01]} 41. Qe6+ {[%emt 0:00:03]} Kg7 {[%emt 0:00:03]} 42. Qg6+ {[%emt 0:00:15]} Kf8 {[%emt 0:00:04]} 43. Qf6# {[%emt 0:00:02]} 1-0

[Event "Gibraltar Amateurs B 2019"]
[Site "Caleta"]
[Date "2019.01.28"]
[Round "3"]
[White "Francois-Haugrin, Said"]
[Black "Cernuda Orejas, Victor Manuel"]
[Result "0-1"]
[ECO "B12"]
[WhiteElo "1825"]
[BlackElo "1893"]
[Annotator "NA"]
[PlyCount "83"]
[EventDate "2019.01.18"]
[EventType "swiss"]
[EventCountry "GGB"]
[SourceTitle "playchess.com"]
[Source "ChessBase"]
[SourceQuality "1"]
[TimeControl "6600+10"]

1. e4 {[%emt 0:05:48]} c6 {[%emt 0:00:00]} 2. d4 {[%emt 0:00:42]} d5 {[%emt 0:00:10]} 3. e5 {[%emt 0:00:59]} c5 {[%emt 0:01:52]} 4. c3 {[%emt 0:00:48] B12: Caro-Kann: Advance Variation} cxd4 {[%emt 0:00:11]} 5. cxd4 {[%emt 0:00:03]} Nc6 {[%emt 0:00:31]} 6. Nc3 {[%emt 0:00:51]} e6 {[%emt 0:01:49]} 7. Be3 {[%emt 0:19:43]} Nge7 {[%emt 0:00:24]} 8. g4 $146 {[%emt 0:01:50]} ({Predecessor:} 8. Bd3 Nf5 9. Bxf5 exf5 10. Nge2 Be6 11. O-O Be7 12. Rc1 O-O 13. Na4 {1-0 (43) Short,N (2680)-Sadeghi,S (2141) Ottawa 2010}) 8... h5 {[%emt 0:00:41]} 9. f3 {[%emt 0:01:47]} (9. g5 $11) 9... hxg4 {[%emt 0:00:07]} 10. fxg4 {[%emt 0:00:01]} Ng6 {[%emt 0:00:27]} 11. Nf3 {[%emt 0:01:07]} Qb6 {[%emt 0:01:12]} 12. Qd2 {[%emt 0:00:13]} Bd7 {[%emt 0:01:29]} 13. O-O-O {[%emt 0:03:34]} Bb4 {[%emt 0:00:40]} 14. Kb1 {[%emt 0:00:25]} Rc8 {[%emt 0:00:18]} 15. Rc1 {[%emt 0:00:58]} Na5 {[%emt 0:01:38]} 16. h4 {[%emt 0:22:59]} a6 {[%emt 0:03:18]} 17. Bd3 {[%emt 0:04:04]} (17. h5 $16) 17... Ne7 {[%emt 0:00:19]} 18. Rhf1 {[%emt 0:06:50]} Bb5 {[%emt 0:01:42]} 19. Bxb5+ {[%emt 0:00:35]} axb5 {[%emt 0:00:07]} 20. b3 {[%emt 0:01:38]} (20. Ng5 $11 Nc4 21. Qe2) 20... Bxc3 {[%emt 0:03:52]} 21. Rxc3 {[%emt 0:00:11]} Rxc3 {[%emt 0:03:45]} 22. Qxc3 {[%emt 0:00:11]} b4 {[%emt 0:00:13]} 23. Qd3 {[%emt 0:03:28]} Qa6 {[%emt 0:00:25]} 24. Qxa6 {[%emt 0:14:02]} bxa6 {[%emt 0:00:18]} 25. Bg5 {[%emt 0:07:16]} Nac6 {[%emt 0:00:52]} 26. Rc1 {[%emt 0:00:24]} Kd7 {[%emt 0:00:18]} 27. Kb2 {[%emt 0:00:47]} Ng8 {[%emt 0:01:23]} 28. a3 {[%emt 0:02:04]} f6 {[%emt 0:00:48]} 29. Bf4 {[%emt 0:00:23]} Nh6 {[%emt 0:01:12]} 30. exf6 {[%emt 0:05:53]} gxf6 {[%emt 0:00:21]} 31. g5 {[%emt 0:00:22]} fxg5 {[%emt 0:00:19]} 32. Bxg5 {[%emt 0:00:51]} Nf5 {[%emt 0:00:25]} 33. axb4 {[%emt 0:00:48]} Rb8 {[%emt 0:02:19]} 34. Ne5+ {[%emt 0:01:55]} Nxe5 {[%emt 0:00:10]} 35. dxe5 {[%emt 0:00:01]} Rxb4 {[%emt 0:00:26]} 36. Rh1 {[%emt 0:00:41]} Rg4 {[%emt 0:03:23]} 37. Bf6 {[%emt 0:00:24]} Rg2+ {[%emt 0:03:43]} 38. Ka3 {[%emt 0:00:28]} Ng3 {[%emt 0:00:29]} 39. Rh3 {[%emt 0:00:41]} Ne4 {[%emt 0:00:13]} 40. Rf3 $2 {[%emt 0:00:13]} (40. h5 $18 Nxf6 41. exf6) 40... Ke8 {[%emt 0:04:14]} 41. h5 $2 {[%emt 0:00:34]} ({White should try} 41. Kb4 $11) 41... Rh2 {[%emt 0:01:07]} 42. Kb4 $19 {[%emt 0:00:22]} 0-1

[Event "Gibraltar Amateurs B 2019"]
[Site "Caleta"]
[Date "2019.01.28"]
[Round "3"]
[White "Mircov, Nicola-Alexandar"]
[Black "Valladolid Martin, Fco. Jose"]
[Result "0-1"]
[ECO "C54"]
[WhiteElo "1797"]
[BlackElo "1878"]
[Annotator "NA"]
[PlyCount "122"]
[EventDate "2019.01.18"]
[EventType "swiss"]
[EventCountry "GGB"]
[SourceTitle "playchess.com"]
[Source "ChessBase"]
[SourceQuality "1"]
[TimeControl "6600+10"]

{[%evp 9,121,0,3,3,32767,32767,32767,32767,16,32767,32767,32767,32767,-17,50,32767,32767,32767,-83,32767,-52,32767,-84,32767,32767,32767,32767,32767,32767,14,32767,46,32767,32767,32767,32767,0,32767,22,-11,0,-10,-7,0,-16,-6,-12,-45,-39,-43,-46,-115,-120,-175,-156,-271,-274,-292,-314,-304,-305,32767,32767,32767,32767,-500,-535,-609,-545,-920,32767,32767,-658,-672,32767,32767,-1896,-3670,-4622,-1641,-4627,-12845,-29973,-4637,0,-12359,-4602,-29986,-972,-1222,-29956,-1769,32767,32767,-12809,-29974,-29973,-29971,-29969,-29961,-29968,-6099,-29975,-29971,-29980,-12693,-29981,-29985,-29986,-29985,-29983,-29983,-29985,-29984]} 1. e4 {[%emt 0:14:04]} e5 {[%emt 0:00:44]} 2. Nf3 {[%emt 0:00:06]} Nc6 {[%emt 0:00:05]} 3. Bc4 {[%emt 0:00:05]} Bc5 {[%emt 0:00:55]} 4. c3 {[%emt 0:00:15]} Nf6 {[%emt 0:00:05]} 5. d4 {[%emt 0:00:12]} exd4 {[%emt 0:00:07] LiveBook: 1617 Games} 6. e5 {[%emt 0:00:12]} d5 {[%emt 0:00:39]} 7. Bb5 {[%emt 0:00:05]} Ne4 {[%emt 0:00:24]} 8. cxd4 {[%emt 0:00:05]} Bb6 {[%emt 0:00:24]} 9. Be3 {[%emt 0:02:57] C54: Giuoco Piano: 4 c3 Nf6, main lines with 5 d4 and 5 d3} O-O {[%emt 0:00:40]} 10. Nc3 {[%emt 0:02:39]} Ba5 {[%emt 0:02:56]} 11. Qb3 {[%emt 0:06:38]} f6 {[%emt 0:13:03]} 12. O-O-O $146 {[%emt 0:06:03]} ({Predecessor:} 12. exf6 Nxf6 13. Bxc6 bxc6 14. Ne5 Qd6 15. O-O c5 16. Na4 c4 17. Qc2 Ng4 18. Nxg4 Bxg4 19. Bd2 Bb6 20. Nxb6 axb6 21. f3 Bf5 22. Qc3 Bd3 23. Rfe1 Rfe8 24. a3 h6 {½-½ (24) Anton Guijarro,D (2642)-Anand,V (2773) St Petersburg 2018}) 12... Bxc3 {[%emt 0:06:18]} 13. bxc3 {[%emt 0:00:29]} Na5 {[%emt 0:01:04]} 14. Qc2 {[%emt 0:02:36]} Qe7 {[%emt 0:09:03]} 15. Kb1 {[%emt 0:06:52]} Bf5 {[%emt 0:05:59]} 16. Bd3 {[%emt 0:02:36]} Qa3 {[%emt 0:00:16]} 17. Ka1 {[%emt 0:07:28]} fxe5 {[%emt 0:09:58]} 18. Nh4 {[%emt 0:07:59]} Qxc3+ {[%emt 0:18:48]} 19. Qxc3 {[%emt 0:00:28] Pin} Nxc3 {[%emt 0:00:08]} 20. Bxf5 {[%emt 0:00:54]} Nxd1 {[%emt 0:00:23]} 21. Be6+ {[%emt 0:01:29]} Kh8 {[%emt 0:00:14]} 22. Rxd1 {[%emt 0:00:30]} c6 $1 {[%emt 0:12:42]} 23. dxe5 {[%emt 0:02:05]} Rae8 {[%emt 0:07:47]} 24. Bc5 {[%emt 0:06:09]} Rf4 {[%emt 0:11:32]} 25. Bd7 {[%emt 0:01:43]} Rxe5 {[%emt 0:01:20]} 26. Bd6 {[%emt 0:02:10]} Nc4 {[%emt 0:00:20]} 27. Bxe5 {[%emt 0:05:37]} Nxe5 {[%emt 0:00:06]} 28. g3 {[%emt 0:00:12]} Rxf2 {[%emt 0:01:17]} 29. Bc8 {[%emt 0:00:12]} g6 {[%emt 0:02:27]} ({But not} 29... Rxh2 $2 30. Re1 $18) 30. h3 {[%emt 0:02:43] [#]} (30. Re1 $15 Nd3 31. Re8+ Kg7 32. Kb1) 30... Kg7 $1 {[%emt 0:00:24]} 31. g4 {[%emt 0:00:51]} (31. Re1 $17 {is a better defense.} Kf6 32. Rb1) 31... Kf6 {[%emt 0:00:39]} 32. Bxb7 {[%emt 0:00:30]} (32. Re1 $142) 32... Kg5 {[%emt 0:00:52]} 33. Re1 {[%emt 0:01:16]} Nd3 {[%emt 0:00:02]} 34. Rd1 {[%emt 0:00:13] [#]} Nb4 $1 {[%emt 0:00:15]} 35. Nxg6 {[%emt 0:02:38]} hxg6 {[%emt 0:00:04]} 36. Kb1 {[%emt 0:00:07]} Nxa2 {[%emt 0:00:15]} 37. h4+ {[%emt 0:01:11]} Kxh4 {[%emt 0:00:09]} 38. Rh1+ {[%emt 0:00:29]} Kxg4 {[%emt 0:00:10]} 39. Bxc6 {[%emt 0:00:05]} Nc3+ {[%emt 0:00:08]} 40. Kc1 {[%emt 0:00:04]} g5 {[%emt 0:00:10]} 41. Rh7 {[%emt 0:00:16]} a5 {[%emt 0:00:14]} 42. Ra7 {[%emt 0:00:32] [#]} a4 $1 {[%emt 0:00:20]} 43. Bxa4 {[%emt 0:00:56]} Nxa4 {[%emt 0:01:25]} 44. Rxa4+ {[%emt 0:00:02]} Kf3 {[%emt 0:00:23]} 45. Kd1 $11 {[%emt 0:00:32]} Rf1+ {[%emt 0:00:15]} (45... g4 46. Ke1) 46. Kd2 {[%emt 0:00:02]} Rf2+ $2 {[%emt 0:01:03]} (46... g4 $19 47. Ra8 g3 48. Rf8+ Kg2) 47. Ke1 $2 {[%emt 0:00:03]} Rb2 {[%emt 0:00:15]} (47... g4 $142 48. Ra7 g3) 48. Rd4 {[%emt 0:00:17]} Rb5 {[%emt 0:00:08]} (48... Ke3 $142 49. Rxd5 Rb1+ 50. Rd1 Rxd1+ 51. Kxd1 g4 52. Ke1 g3 53. Kf1 Kf3 54. Ke1 g2 55. Kd1 g1=Q+ 56. Kc2 Qc5+ 57. Kb1 Ke3 58. Ka1 Kd3 59. Kb2 Qb5+ 60. Ka3 Kc2 61. Ka2 Qb2#) 49. Ra4 {[%emt 0:00:29]} g4 {[%emt 0:00:04]} 50. Ra3+ {[%emt 0:00:04]} Ke4 {[%emt 0:00:16]} 51. Kf2 {[%emt 0:00:09]} d4 {[%emt 0:00:18]} (51... Rb2+ $142 52. Kg3 d4 53. Kxg4 d3 54. Ra4+ Ke3 55. Kg5 d2 56. Ra1 Rb5+ 57. Kg4 Rd5 58. Rd1 Ke2 59. Ra1 d1=Q 60. Rxd1 Kxd1 61. Kf3 Rd4 62. Ke3 Rb4 63. Kd3 Ra4 64. Ke3 Kc2 65. Kf2 Kd3 66. Kf3 Kd2 67. Kf2 Ra3 68. Kf1 Ke3 69. Kg2 Ke2 70. Kh1 Kf1 71. Kh2 Kf2 72. Kh1 Rh3#) 52. Kg3 {[%emt 0:00:13]} Rg5 {[%emt 0:00:07]} 53. Ra8 {[%emt 0:00:09]} Ke3 {[%emt 0:00:04]} 54. Re8+ {[%emt 0:00:09]} Kd2 {[%emt 0:00:04]} 55. Ra8 {[%emt 0:01:49]} d3 {[%emt 0:00:10]} 56. Ra2+ {[%emt 0:00:35]} Ke3 {[%emt 0:00:02]} 57. Ra3 {[%emt 0:00:45]} Ke2 {[%emt 0:00:03]} 58. Kf4 {[%emt 0:00:11]} Rg8 {[%emt 0:00:06]} 59. Ra4 {[%emt 0:00:19]} Re8 {[%emt 0:00:29]} 60. Kxg4 {[%emt 0:00:10]} d2 {[%emt 0:00:01]} 61. Ra2 {[%emt 0:00:21]} Ke1 {[%emt 0:00:04]} 0-1

[Event "Gibraltar Amateurs B 2019"]
[Site "Caleta"]
[Date "2019.01.28"]
[Round "3"]
[White "Poggio, Freddie"]
[Black "Hermes, Geoff R"]
[Result "0-1"]
[ECO "A41"]
[WhiteElo "1765"]
[BlackElo "1860"]
[Annotator "NA"]
[PlyCount "96"]
[EventDate "2019.01.18"]
[EventType "swiss"]
[EventCountry "GGB"]
[SourceTitle "playchess.com"]
[Source "ChessBase"]
[SourceQuality "1"]
[TimeControl "6600+10"]

1. Nf3 {[%emt 0:10:54]} d6 {[%emt 0:00:00]} 2. d4 {[%emt 0:00:11]} Bg4 {[%emt 0:00:04]} 3. e3 {[%emt 0:00:28]} Nf6 {[%emt 0:00:53]} 4. c3 {[%emt 0:03:00] A41: 1 d4 d6: Tartakower System and Modern Defence} (4. Be2 Nbd7 5. c4 e5 6. Nc3 c6 7. O-O Be7 8. h3 Bh5 9. b3 O-O 10. Bb2 e4 11. Nh2 Bxe2 12. Qxe2 d5 13. Rac1 a6 14. Ng4 Re8 15. Rc2 Bd6 16. Nxf6+ {½-½ (16) Mamedyarov,S (2817)-Petrosian,T (2598) St Petersburg 2018}) 4... Nbd7 {[%emt 0:00:21]} 5. Nbd2 {[%emt 0:00:22]} e5 {[%emt 0:00:14]} 6. dxe5 {[%emt 0:00:26]} Nxe5 {[%emt 0:01:37]} 7. Qa4+ $146 {[%emt 0:03:05]} ({Predecessor:} 7. Be2 Be7 8. O-O O-O 9. h3 Nxf3+ 10. Nxf3 Be6 11. Nd4 Bd7 12. Bf3 {½-½ (23) Peter,K (1507)-Bockelmann,F (1634) Germany 2005}) 7... Qd7 {[%emt 0:01:53]} 8. Qxd7+ {[%emt 0:01:52]} Nfxd7 {[%emt 0:00:44]} 9. Be2 {[%emt 0:02:07]} Be7 {[%emt 0:04:38]} 10. O-O {[%emt 0:03:07]} O-O {[%emt 0:00:18]} 11. Re1 {[%emt 0:01:07]} Bf5 {[%emt 0:09:08]} 12. Nxe5 {[%emt 0:07:00]} dxe5 {[%emt 0:03:50]} 13. Bc4 {[%emt 0:05:30]} (13. e4 $11 {keeps the balance.} Be6 14. Nc4) 13... Nb6 {[%emt 0:04:05]} 14. Bb3 {[%emt 0:01:13]} Rad8 {[%emt 0:00:49]} 15. Nf3 {[%emt 0:04:15]} Bf6 {[%emt 0:01:01]} 16. e4 {[%emt 0:00:43]} Bg4 {[%emt 0:01:53]} 17. Be3 {[%emt 0:00:13]} Rd3 {[%emt 0:03:05]} 18. Rad1 {[%emt 0:01:27]} Rfd8 {[%emt 0:00:46]} 19. Rxd3 {[%emt 0:01:33]} Rxd3 {[%emt 0:00:06]} 20. Bc2 {[%emt 0:02:09]} Rd7 {[%emt 0:00:53]} 21. b3 {[%emt 0:00:14]} Nc8 {[%emt 0:05:16]} 22. Nd2 {[%emt 0:01:04]} Be6 {[%emt 0:02:54]} 23. f4 {[%emt 0:04:08]} exf4 {[%emt 0:01:30]} 24. Bxf4 {[%emt 0:00:27]} Bxc3 {[%emt 0:00:24]} 25. Rd1 {[%emt 0:00:20]} Bg4 {[%emt 0:07:48]} 26. Nf3 {[%emt 0:00:07]} Rxd1+ {[%emt 0:00:16]} 27. Bxd1 {[%emt 0:00:10]} Nd6 {[%emt 0:02:10]} 28. h3 {[%emt 0:01:00]} Bh5 {[%emt 0:00:42]} 29. g4 {[%emt 0:02:12]} Bg6 {[%emt 0:00:13]} 30. e5 {[%emt 0:00:22]} Nb5 {[%emt 0:06:48]} 31. a4 {[%emt 0:03:08]} Nd4 {[%emt 0:00:00]} 32. Kf2 {[%emt 0:02:09]} Nxf3 {[%emt 0:00:00]} 33. Kxf3 {[%emt 0:00:51] [#]} c6 $1 {[%emt 0:00:00]} 34. Be2 {[%emt 0:00:15]} Bc2 {[%emt 0:01:59]} 35. Bc4 {[%emt 0:00:19]} b5 {[%emt 0:00:22]} 36. axb5 {[%emt 0:00:16]} cxb5 {[%emt 0:00:08]} 37. Bd5 {[%emt 0:01:59]} a5 {[%emt 0:00:43]} 38. e6 {[%emt 0:00:14]} fxe6 {[%emt 0:00:32]} 39. Bxe6+ {[%emt 0:00:11]} Kf8 {[%emt 0:00:14]} 40. Bd6+ {[%emt 0:00:21]} Ke8 {[%emt 0:00:16]} 41. Ke3 {[%emt 0:01:53]} a4 $19 {[%emt 0:02:18]} 42. bxa4 {[%emt 0:00:47]} bxa4 {[%emt 0:00:13]} 43. h4 {[%emt 0:00:49]} Bb3 {[%emt 0:02:56]} 44. Bxb3 {[%emt 0:01:51]} axb3 {[%emt 0:00:06]} 45. Kd3 {[%emt 0:00:23]} b2 {[%emt 0:00:55]} 46. Kc2 {[%emt 0:00:20]} Kf7 {[%emt 0:00:42]} 47. g5 {[%emt 0:00:56]} Kg6 {[%emt 0:00:12]} 48. Bc7 {[%emt 0:03:11]} Be1 {[%emt 0:01:30]} 0-1

[Event "Gibraltar Amateurs B 2019"]
[Site "Caleta"]
[Date "2019.01.28"]
[Round "3"]
[White "Oueld El Hachemi, Abdelhaq"]
[Black "Marcos Herrero, Francisco"]
[Result "0-1"]
[ECO "A48"]
[WhiteElo "1747"]
[BlackElo "1855"]
[Annotator "NA"]
[PlyCount "102"]
[EventDate "2019.01.18"]
[EventType "swiss"]
[EventCountry "GGB"]
[SourceTitle "playchess.com"]
[Source "ChessBase"]
[SourceQuality "1"]
[TimeControl "6600+10"]

1. d4 {[%emt 0:04:27]} Nf6 {[%emt 0:00:00]} 2. Nf3 {[%emt 0:01:17]} c5 {[%emt 0:00:01]} 3. e3 {[%emt 0:00:40]} g6 {[%emt 0:00:19]} 4. Nc3 {[%emt 0:00:15]} Bg7 {[%emt 0:02:02]} 5. Be2 {[%emt 0:02:37]} b6 {[%emt 0:01:40]} 6. d5 {[%emt 0:01:35]} e6 {[%emt 0:01:06]} 7. e4 {[%emt 0:02:41]} exd5 {[%emt 0:03:43]} 8. e5 {[%emt 0:01:11]} Ne4 {[%emt 0:19:45]} 9. Qxd5 {[%emt 0:03:13]} Nxc3 {[%emt 0:00:09]} 10. Qxa8 {[%emt 0:01:05]} Nxe2 {[%emt 0:00:04]} 11. Qxb8 {[%emt 0:00:21]} Nxc1 {[%emt 0:00:12]} 12. Rxc1 {[%emt 0:00:16]} O-O {[%emt 0:00:13]} 13. O-O {[%emt 0:02:08]} f6 {[%emt 0:01:46]} 14. Rfe1 {[%emt 0:05:34]} fxe5 {[%emt 0:00:45]} 15. Rcd1 {[%emt 0:05:24]} d5 {[%emt 0:02:05]} 16. Qa8 {[%emt 0:07:14]} e4 {[%emt 0:07:05] [#]} 17. Nd2 $2 {[%emt 0:04:36]} ({Of course not} 17. Rxd5 $6 Qc7 $11) (17. Rxe4 $1 $16 {[%mdl 512] is necessary to keep the advantage.} Bf5 (17... dxe4 18. Rxd8) 18. Qxd8 Rxd8 19. Re2) 17... Qg5 {[%emt 0:02:38]} 18. f4 {[%emt 0:02:47]} Bd4+ {[%emt 0:03:36]} 19. Kh1 {[%emt 0:00:07] [#]} Qh5 $1 {[%emt 0:00:35]} 20. f5 {[%emt 0:02:31]} Be6 {[%emt 0:07:58]} 21. Qc6 {[%emt 0:01:19]} Qxf5 {[%emt 0:00:22]} 22. Rf1 {[%emt 0:01:13]} Qe5 {[%emt 0:03:27]} 23. Rxf8+ {[%emt 0:00:34]} Kxf8 {[%emt 0:00:11]} 24. c3 {[%emt 0:01:06]} Bf2 {[%emt 0:01:11]} 25. Rf1 {[%emt 0:00:15]} e3 {[%emt 0:00:48]} 26. Nf3 {[%emt 0:03:15]} Qf5 {[%emt 0:03:22]} 27. Qd6+ {[%emt 0:02:20]} Kg7 {[%emt 0:01:08]} 28. Qe7+ {[%emt 0:01:46]} Kh6 {[%emt 0:01:13]} 29. h4 {[%emt 0:11:32]} Qf7 {[%emt 0:13:45]} 30. Qg5+ {[%emt 0:01:36]} Kg7 {[%emt 0:00:24]} 31. h5 {[%emt 0:03:52]} h6 {[%emt 0:08:02]} 32. Qe5+ {[%emt 0:04:24]} Qf6 {[%emt 0:03:54]} 33. Qxf6+ {[%emt 0:02:47]} Kxf6 {[%emt 0:00:08]} 34. hxg6 {[%emt 0:00:35]} Bg4 {[%emt 0:04:47]} 35. Ng1 {[%emt 0:02:17]} d4 {[%emt 0:00:38]} 36. cxd4 {[%emt 0:00:55]} cxd4 {[%emt 0:00:06]} 37. Nh3 {[%emt 0:03:20]} Bxh3 {[%emt 0:01:11]} 38. gxh3 {[%emt 0:00:03]} Kxg6 {[%emt 0:01:42]} 39. Kg2 {[%emt 0:00:15]} e2 {[%emt 0:03:23]} 40. Kxf2 {[%emt 0:01:29]} exf1=Q+ {[%emt 0:00:11]} 41. Kxf1 {[%emt 0:00:36]} Kf5 {[%emt 0:00:07]} 42. Kf2 {[%emt 0:05:44]} Ke4 {[%emt 0:00:46]} 43. Ke2 {[%emt 0:02:28]} d3+ {[%emt 0:02:52]} 44. Kd2 {[%emt 0:00:18]} Kd4 {[%emt 0:00:01]} 45. h4 {[%emt 0:00:26]} h5 {[%emt 0:00:11]} 46. b3 {[%emt 0:00:20]} b5 {[%emt 0:00:41]} 47. a3 {[%emt 0:01:26]} a5 {[%emt 0:00:28]} 48. Kc1 {[%emt 0:03:14]} Kc3 {[%emt 0:00:09]} 49. b4 {[%emt 0:00:36]} axb4 {[%emt 0:00:11]} 50. axb4 {[%emt 0:00:17]} Kxb4 {[%emt 0:00:02]} 51. Kd2 {[%emt 0:00:05]} Kc4 {[%emt 0:00:10]} 0-1